[Event "Early-Titled-Tuesday-Blitz-September-12-2023"]
[Site "Chess.com"]
[Date "2023.09.12"]
[Round "3"]
[White "AradNazari"]
[Black "infinitegiantkiller"]
[Result "1-0"]
[WhiteElo "2732"]
[BlackElo "2494"]
[TimeControl "180+1"]
[EndTime "8:23:08 PDT"]
[Termination "AradNazari won by resignation"]

1. e4 {[%clk 0:03:00.9]} 1... c5 {[%clk 0:02:55.9]} 2. Nf3 {[%clk 0:03:01.4]}
2... Nc6 {[%clk 0:02:56.1]} 3. Bb5 {[%clk 0:03:01.9]} 3... g6 {[%clk 0:02:55]}
4. Bxc6 {[%clk 0:03:02.4]} 4... bxc6 {[%clk 0:02:55.9]} 5. d3 {[%clk 0:03:03.1]}
5... Bg7 {[%clk 0:02:56.4]} 6. O-O {[%clk 0:03:03.2]} 6... d6 {[%clk 0:02:57]}
7. h3 {[%clk 0:03:02.5]} 7... e5 {[%clk 0:02:57.2]} 8. Be3 {[%clk 0:02:57.6]}
8... Ne7 {[%clk 0:02:57.7]} 9. c3 {[%clk 0:02:58.3]} 9... O-O {[%clk 0:02:57.6]}
10. d4 {[%clk 0:02:59]} 10... cxd4 {[%clk 0:02:58]} 11. cxd4 {[%clk 0:02:59.9]}
11... f5 {[%clk 0:02:56.9]} 12. dxe5 {[%clk 0:02:37.6]} 12... fxe4 {[%clk
0:02:44.3]} 13. exd6 {[%clk 0:02:37.7]} 13... exf3 {[%clk 0:02:44.5]} 14. Bg5
{[%clk 0:02:37.6]} 14... Bf6 {[%clk 0:02:40.2]} 15. Bxf6 {[%clk 0:02:18.9]}
15... Rxf6 {[%clk 0:02:41.1]} 16. dxe7 {[%clk 0:02:19.5]} 16... Qxe7 {[%clk
0:02:42]} 17. Re1 {[%clk 0:02:17.7]} 17... Qf7 {[%clk 0:02:35.4]} 18. Qd8+
{[%clk 0:02:15.6]} 18... Kg7 {[%clk 0:02:27]} 19. Re7 {[%clk 0:02:15]} 1-0

[Event "Early-Titled-Tuesday-Blitz-September-12-2023"]
[Site "Chess.com"]
[Date "2023.09.12"]
[Round "3"]
[White "temiksmozg"]
[Black "sjoerd893"]
[Result "1-0"]
[WhiteElo "2634"]
[BlackElo "2460"]
[TimeControl "180+1"]
[EndTime "8:23:11 PDT"]
[Termination "temiksmozg won by resignation"]

1. d4 {[%clk 0:03:00.9]} 1... d5 {[%clk 0:02:59.2]} 2. c4 {[%clk 0:02:59]} 2...
c6 {[%clk 0:02:59.3]} 3. Nc3 {[%clk 0:02:58.7]} 3... Nf6 {[%clk 0:02:59.1]} 4.
e3 {[%clk 0:02:58.7]} 4... e6 {[%clk 0:02:56.3]} 5. Nf3 {[%clk 0:02:58.6]} 5...
Nbd7 {[%clk 0:02:56.1]} 6. Qc2 {[%clk 0:02:57.7]} 6... Bd6 {[%clk 0:02:54.1]} 7.
b3 {[%clk 0:02:56.8]} 7... b6 {[%clk 0:02:51.8]} 8. Bd3 {[%clk 0:02:56.4]} 8...
Bb7 {[%clk 0:02:50.9]} 9. Bb2 {[%clk 0:02:56.1]} 9... Qe7 {[%clk 0:02:51]} 10.
O-O {[%clk 0:02:55.6]} 10... O-O {[%clk 0:02:51.2]} 11. e4 {[%clk 0:02:48]}
11... dxe4 {[%clk 0:02:19.9]} 12. Nxe4 {[%clk 0:02:48.9]} 12... Nxe4 {[%clk
0:02:20]} 13. Bxe4 {[%clk 0:02:49.8]} 13... Nf6 {[%clk 0:02:20.6]} 14. Bd3
{[%clk 0:02:50.2]} 14... c5 {[%clk 0:02:21.2]} 15. dxc5 {[%clk 0:02:50.3]} 15...
Bxc5 {[%clk 0:02:19.7]} 16. Bxf6 {[%clk 0:02:49.2]} 16... Qxf6 {[%clk
0:02:20.5]} 17. Bxh7+ {[%clk 0:02:49.6]} 17... Kh8 {[%clk 0:02:21]} 18. Be4
{[%clk 0:02:50.5]} 18... Bxe4 {[%clk 0:02:05.1]} 19. Qxe4 {[%clk 0:02:51.4]}
19... Rad8 {[%clk 0:02:03]} 20. Rad1 {[%clk 0:02:50.1]} 20... Qb2 {[%clk
0:01:42.5]} 21. Rxd8 {[%clk 0:02:49.4]} 21... Rxd8 {[%clk 0:01:38.3]} 22. Qh4+
{[%clk 0:02:49.7]} 1-0

[Event "Early-Titled-Tuesday-Blitz-September-12-2023"]
[Site "Chess.com"]
[Date "2023.09.12"]
[Round "3"]
[White "lamomiajunior"]
[Black "ShahMatKanal"]
[Result "0-1"]
[WhiteElo "2709"]
[BlackElo "2505"]
[TimeControl "180+1"]
[EndTime "8:23:53 PDT"]
[Termination "ShahMatKanal won by resignation"]

1. d4 {[%clk 0:03:00.9]} 1... d5 {[%clk 0:02:55.8]} 2. Nc3 {[%clk 0:03:01.1]}
2... c6 {[%clk 0:02:53.5]} 3. Bf4 {[%clk 0:03:00.8]} 3... Bf5 {[%clk 0:02:51]}
4. e3 {[%clk 0:03:00.8]} 4... e6 {[%clk 0:02:47.8]} 5. Nf3 {[%clk 0:02:53.7]}
5... Bd6 {[%clk 0:02:47.5]} 6. Bxd6 {[%clk 0:02:50.4]} 6... Qxd6 {[%clk
0:02:48.4]} 7. Bd3 {[%clk 0:02:51]} 7... Bxd3 {[%clk 0:02:48]} 8. Qxd3 {[%clk
0:02:51.6]} 8... Nd7 {[%clk 0:02:40]} 9. O-O {[%clk 0:02:48.5]} 9... Ngf6 {[%clk
0:02:37.4]} 10. e4 {[%clk 0:02:46.9]} 10... dxe4 {[%clk 0:02:38.3]} 11. Nxe4
{[%clk 0:02:47.8]} 11... Nxe4 {[%clk 0:02:38.5]} 12. Qxe4 {[%clk 0:02:48.7]}
12... Nf6 {[%clk 0:02:38.7]} 13. Qh4 {[%clk 0:02:49.4]} 13... Qb4 {[%clk
0:02:28.3]} 14. b3 {[%clk 0:02:41.3]} 14... O-O {[%clk 0:02:26.9]} 15. c4 {[%clk
0:02:34.8]} 15... a5 {[%clk 0:02:25.8]} 16. Rab1 {[%clk 0:02:21.5]} 16... a4
{[%clk 0:02:20.1]} 17. Rfc1 {[%clk 0:01:42.4]} 17... axb3 {[%clk 0:02:13.2]} 18.
Rxb3 {[%clk 0:01:40.5]} 18... Qe7 {[%clk 0:02:12.9]} 19. Rcb1 {[%clk 0:01:37.5]}
19... Rxa2 {[%clk 0:02:12]} 20. Rxb7 {[%clk 0:01:37.3]} 20... Qxb7 {[%clk
0:02:10.9]} 0-1

[Event "Early-Titled-Tuesday-Blitz-September-12-2023"]
[Site "Chess.com"]
[Date "2023.09.12"]
[Round "3"]
[White "BillieKimbah"]
[Black "arenal72"]
[Result "1-0"]
[WhiteElo "3017"]
[BlackElo "2524"]
[TimeControl "180+1"]
[EndTime "8:24:17 PDT"]
[Termination "BillieKimbah won by resignation"]

1. d4 {[%clk 0:03:00.9]} 1... d6 {[%clk 0:01:42.3]} 2. Nf3 {[%clk 0:02:59.4]}
2... g6 {[%clk 0:01:40.6]} 3. e4 {[%clk 0:02:58.7]} 3... Nf6 {[%clk 0:01:40.4]}
4. Bd3 {[%clk 0:02:58.2]} 4... Bg7 {[%clk 0:01:37]} 5. O-O {[%clk 0:02:57.7]}
5... O-O {[%clk 0:01:37]} 6. h3 {[%clk 0:02:57.7]} 6... Nc6 {[%clk 0:01:33.3]}
7. c3 {[%clk 0:02:55.6]} 7... e5 {[%clk 0:01:33.6]} 8. Re1 {[%clk 0:02:55.3]}
8... a6 {[%clk 0:01:29.3]} 9. Nbd2 {[%clk 0:02:52.1]} 9... b5 {[%clk 0:01:27.8]}
10. Nf1 {[%clk 0:02:51.4]} 10... Bb7 {[%clk 0:01:25.5]} 11. Ng3 {[%clk
0:02:51.3]} 11... Qe7 {[%clk 0:01:24.5]} 12. Bg5 {[%clk 0:02:49]} 12... h6
{[%clk 0:01:21.8]} 13. Be3 {[%clk 0:02:49.2]} 13... Rac8 {[%clk 0:01:06.6]} 14.
a4 {[%clk 0:02:48.5]} 14... b4 {[%clk 0:01:05.1]} 15. d5 {[%clk 0:02:47.6]}
15... Nb8 {[%clk 0:00:58.2]} 16. cxb4 {[%clk 0:02:47.4]} 16... c6 {[%clk
0:00:48.4]} 17. dxc6 {[%clk 0:02:47.6]} 17... Nxc6 {[%clk 0:00:47.4]} 18. Qd2
{[%clk 0:02:47.2]} 18... Kh7 {[%clk 0:00:41.5]} 19. b5 {[%clk 0:02:46.1]} 1-0

[Event "Early-Titled-Tuesday-Blitz-September-12-2023"]
[Site "Chess.com"]
[Date "2023.09.12"]
[Round "3"]
[White "Guzman70"]
[Black "aghasiyevkamal"]
[Result "0-1"]
[WhiteElo "2321"]
[BlackElo "2551"]
[TimeControl "180+1"]
[EndTime "8:24:18 PDT"]
[Termination "aghasiyevkamal won by resignation"]

1. Nf3 {[%clk 0:03:00.9]} 1... d5 {[%clk 0:02:56.7]} 2. d4 {[%clk 0:02:57.4]}
2... Nf6 {[%clk 0:02:56.1]} 3. Bf4 {[%clk 0:02:57.3]} 3... e6 {[%clk 0:02:55.4]}
4. e3 {[%clk 0:02:57.7]} 4... Bd6 {[%clk 0:02:53.9]} 5. Bg3 {[%clk 0:02:56.5]}
5... c5 {[%clk 0:02:53.1]} 6. Nbd2 {[%clk 0:02:54.2]} 6... Qc7 {[%clk
0:02:52.6]} 7. c4 {[%clk 0:02:42.8]} 7... Bxg3 {[%clk 0:02:42.8]} 8. hxg3 {[%clk
0:02:43.7]} 8... O-O {[%clk 0:02:43.3]} 9. Rc1 {[%clk 0:02:37.7]} 9... cxd4
{[%clk 0:02:36.1]} 10. cxd5 {[%clk 0:02:35.4]} 10... Qa5 {[%clk 0:02:35.7]} 11.
Nxd4 {[%clk 0:02:24.4]} 11... Qxd5 {[%clk 0:02:35.1]} 12. Bd3 {[%clk 0:02:11.7]}
12... Nbd7 {[%clk 0:02:22.8]} 13. Qf3 {[%clk 0:01:50.6]} 13... Ne5 {[%clk
0:02:16.5]} 14. Bxh7+ {[%clk 0:01:31.7]} 14... Nxh7 {[%clk 0:02:14.2]} 15. Qh5
{[%clk 0:01:31.1]} 15... Nd3+ {[%clk 0:02:13.6]} 16. Kf1 {[%clk 0:01:29.6]}
16... Qxh5 {[%clk 0:02:12.4]} 17. Rxh5 {[%clk 0:01:08.1]} 17... Nxc1 {[%clk
0:02:11.8]} 18. Nxe6 {[%clk 0:01:08.5]} 18... Bxe6 {[%clk 0:02:11.1]} 19. Rxh7
{[%clk 0:01:09.4]} 19... Kxh7 {[%clk 0:02:10.6]} 0-1

[Event "Early-Titled-Tuesday-Blitz-September-12-2023"]
[Site "Chess.com"]
[Date "2023.09.12"]
[Round "3"]
[White "elchacal664"]
[Black "Arimin1329"]
[Result "1-0"]
[WhiteElo "2442"]
[BlackElo "2213"]
[TimeControl "180+1"]
[EndTime "8:24:39 PDT"]
[Termination "elchacal664 won by resignation"]

1. e4 {[%clk 0:03:00.9]} 1... c6 {[%clk 0:02:57.2]} 2. Nf3 {[%clk 0:03:00.1]}
2... d5 {[%clk 0:02:57.2]} 3. Nc3 {[%clk 0:03:00.4]} 3... Bg4 {[%clk 0:02:56.6]}
4. h3 {[%clk 0:02:59.2]} 4... Bh5 {[%clk 0:02:55.9]} 5. g4 {[%clk 0:02:57.4]}
5... Bg6 {[%clk 0:02:55.7]} 6. d3 {[%clk 0:02:57.4]} 6... dxe4 {[%clk
0:02:54.2]} 7. Nxe4 {[%clk 0:02:54.4]} 7... Bxe4 {[%clk 0:02:51.1]} 8. dxe4
{[%clk 0:02:53.9]} 8... Qxd1+ {[%clk 0:02:52]} 9. Kxd1 {[%clk 0:02:54.1]} 9...
e6 {[%clk 0:02:49]} 10. c3 {[%clk 0:02:54]} 10... Bc5 {[%clk 0:02:48.5]} 11. Ke2
{[%clk 0:02:45.3]} 11... Nd7 {[%clk 0:02:46.5]} 12. Bg2 {[%clk 0:02:38.5]} 12...
O-O-O {[%clk 0:02:46.8]} 13. Be3 {[%clk 0:02:37.7]} 13... Ngf6 {[%clk 0:02:45]}
14. Nd4 {[%clk 0:02:33.7]} 14... Rhe8 {[%clk 0:02:40.3]} 15. b4 {[%clk 0:02:32]}
15... Bb6 {[%clk 0:02:40.1]} 16. a4 {[%clk 0:02:31.3]} 16... Ne5 {[%clk
0:02:26.3]} 17. a5 {[%clk 0:02:30.2]} 17... Bc7 {[%clk 0:02:26.3]} 18. a6 {[%clk
0:02:29.1]} 18... b6 {[%clk 0:01:58.3]} 19. f4 {[%clk 0:02:15.2]} 19... c5
{[%clk 0:01:54]} 20. Nb5 {[%clk 0:01:48.7]} 20... Nc4 {[%clk 0:01:50.4]} 21.
Nxa7+ {[%clk 0:01:46.4]} 21... Kd7 {[%clk 0:01:49.1]} 22. Rhd1+ {[%clk
0:01:42.2]} 22... Ke7 {[%clk 0:01:44.7]} 23. Nc6+ {[%clk 0:01:40.8]} 23... Kf8
{[%clk 0:01:44.6]} 24. Nxd8 {[%clk 0:01:39.8]} 24... Nxe3 {[%clk 0:01:43.3]} 25.
Nxe6+ {[%clk 0:01:35.2]} 25... Rxe6 {[%clk 0:01:42.2]} 26. Kxe3 {[%clk
0:01:35.5]} 26... cxb4 {[%clk 0:01:42.1]} 27. a7 {[%clk 0:01:32.6]} 1-0

[Event "Early-Titled-Tuesday-Blitz-September-12-2023"]
[Site "Chess.com"]
[Date "2023.09.12"]
[Round "3"]
[White "M_One1126"]
[Black "Durarbayli"]
[Result "0-1"]
[WhiteElo "2574"]
[BlackElo "2894"]
[TimeControl "180+1"]
[EndTime "8:24:45 PDT"]
[Termination "Durarbayli won by resignation"]

1. e4 {[%clk 0:03:00.9]} 1... c5 {[%clk 0:02:59.9]} 2. Nf3 {[%clk 0:03:01.1]}
2... d6 {[%clk 0:03:00.6]} 3. d4 {[%clk 0:03:01.6]} 3... cxd4 {[%clk 0:03:01.5]}
4. Nxd4 {[%clk 0:03:02.5]} 4... Nf6 {[%clk 0:03:02.1]} 5. Nc3 {[%clk 0:03:03.2]}
5... Nc6 {[%clk 0:03:02.8]} 6. Bc4 {[%clk 0:03:03]} 6... e6 {[%clk 0:03:02.1]}
7. Be3 {[%clk 0:03:03.2]} 7... a6 {[%clk 0:03:02.5]} 8. Qe2 {[%clk 0:03:03.4]}
8... Qc7 {[%clk 0:03:03.1]} 9. Bb3 {[%clk 0:03:03.4]} 9... Na5 {[%clk
0:03:03.2]} 10. O-O-O {[%clk 0:03:03.4]} 10... b5 {[%clk 0:03:00.9]} 11. g4
{[%clk 0:02:58.6]} 11... Nxb3+ {[%clk 0:02:52.9]} 12. axb3 {[%clk 0:02:58.3]}
12... b4 {[%clk 0:02:49.8]} 13. g5 {[%clk 0:02:52.1]} 13... bxc3 {[%clk
0:02:49.3]} 14. gxf6 {[%clk 0:02:52.2]} 14... cxb2+ {[%clk 0:02:50.2]} 15. Kxb2
{[%clk 0:02:46.1]} 15... gxf6 {[%clk 0:02:50.2]} 16. f4 {[%clk 0:02:39.3]} 16...
Bb7 {[%clk 0:02:46.4]} 17. f5 {[%clk 0:01:59.1]} 17... e5 {[%clk 0:02:43.2]} 18.
Nf3 {[%clk 0:01:44.3]} 18... Bxe4 {[%clk 0:02:39.5]} 19. Rhf1 {[%clk 0:01:31.3]}
19... d5 {[%clk 0:02:20.5]} 20. Ra1 {[%clk 0:01:23.4]} 20... Bb4 {[%clk
0:02:14.9]} 21. Rxa6 {[%clk 0:00:55.4]} 21... Rxa6 {[%clk 0:02:02.4]} 0-1

[Event "Early-Titled-Tuesday-Blitz-September-12-2023"]
[Site "Chess.com"]
[Date "2023.09.12"]
[Round "3"]
[White "IwkooO"]
[Black "glebus008"]
[Result "1-0"]
[WhiteElo "2641"]
[BlackElo "2326"]
[TimeControl "180+1"]
[EndTime "8:24:49 PDT"]
[Termination "IwkooO won by resignation"]

1. e4 {[%clk 0:02:57.4]} 1... c5 {[%clk 0:02:54.8]} 2. Nf3 {[%clk 0:02:55.3]}
2... d6 {[%clk 0:02:54.3]} 3. d4 {[%clk 0:02:55.1]} 3... cxd4 {[%clk 0:02:55.2]}
4. Qxd4 {[%clk 0:02:54.3]} 4... Nf6 {[%clk 0:02:54.8]} 5. c4 {[%clk 0:02:53.7]}
5... Nc6 {[%clk 0:02:52.2]} 6. Qe3 {[%clk 0:02:54.3]} 6... g6 {[%clk 0:02:46.3]}
7. Nc3 {[%clk 0:02:53.9]} 7... Bg7 {[%clk 0:02:44.1]} 8. h3 {[%clk 0:02:54.5]}
8... O-O {[%clk 0:02:39.8]} 9. Be2 {[%clk 0:02:55.1]} 9... Nd7 {[%clk
0:02:25.1]} 10. O-O {[%clk 0:02:54.7]} 10... Qb6 {[%clk 0:02:23.8]} 11. Qd2
{[%clk 0:02:46.7]} 11... Nf6 {[%clk 0:02:12.6]} 12. Rb1 {[%clk 0:02:43.3]} 12...
h6 {[%clk 0:02:06.8]} 13. b3 {[%clk 0:02:38.6]} 13... Be6 {[%clk 0:02:05.8]} 14.
Bb2 {[%clk 0:02:38.7]} 14... a5 {[%clk 0:02:05.4]} 15. Nd5 {[%clk 0:02:36.2]}
15... Bxd5 {[%clk 0:02:04.4]} 16. exd5 {[%clk 0:02:35.5]} 16... Nb4 {[%clk
0:02:02.1]} 17. Bd4 {[%clk 0:02:33.1]} 17... Qc7 {[%clk 0:01:56.6]} 18. Rfe1
{[%clk 0:02:33.8]} 18... b5 {[%clk 0:01:36.9]} 19. a3 {[%clk 0:02:31.4]} 19...
Na6 {[%clk 0:01:29.6]} 20. cxb5 {[%clk 0:02:31.7]} 20... Nc5 {[%clk 0:01:29.6]}
21. Bc4 {[%clk 0:02:26.6]} 21... Qb7 {[%clk 0:01:29]} 22. a4 {[%clk 0:02:25.5]}
22... Rac8 {[%clk 0:01:27]} 23. Rbc1 {[%clk 0:02:23.3]} 23... Nfe4 {[%clk
0:01:26.5]} 24. Qb2 {[%clk 0:02:19.4]} 24... Bxd4 {[%clk 0:01:25.3]} 25. Qxd4
{[%clk 0:02:20.3]} 25... Nf6 {[%clk 0:01:22.4]} 26. Re3 {[%clk 0:02:17.9]} 26...
Kg7 {[%clk 0:01:20.6]} 27. Rce1 {[%clk 0:02:17.7]} 27... Rfe8 {[%clk 0:01:18.2]}
28. Nh2 {[%clk 0:02:11.5]} 28... Rc7 {[%clk 0:01:16.8]} 29. Ng4 {[%clk
0:02:11.5]} 29... Rec8 {[%clk 0:01:09.6]} 30. Rxe7 {[%clk 0:02:09.3]} 30... Rxe7
{[%clk 0:01:08.7]} 31. Qxf6+ {[%clk 0:02:09.6]} 31... Kg8 {[%clk 0:01:08.7]} 32.
Rxe7 {[%clk 0:02:08.7]} 1-0

[Event "Early-Titled-Tuesday-Blitz-September-12-2023"]
[Site "Chess.com"]
[Date "2023.09.12"]
[Round "3"]
[White "Aradhya2000"]
[Black "Cheer_Down"]
[Result "1-0"]
[WhiteElo "2698"]
[BlackElo "2400"]
[TimeControl "180+1"]
[EndTime "8:24:53 PDT"]
[Termination "Aradhya2000 won by resignation"]

1. d4 {[%clk 0:03:00.9]} 1... Nf6 {[%clk 0:02:59]} 2. c4 {[%clk 0:03:01.6]} 2...
g6 {[%clk 0:02:59.1]} 3. g3 {[%clk 0:03:01.2]} 3... Bg7 {[%clk 0:02:58.4]} 4.
Bg2 {[%clk 0:03:01.8]} 4... c6 {[%clk 0:02:56.6]} 5. e4 {[%clk 0:03:00.6]} 5...
d5 {[%clk 0:02:50.3]} 6. e5 {[%clk 0:02:55.8]} 6... Nfd7 {[%clk 0:02:42]} 7.
cxd5 {[%clk 0:02:51]} 7... cxd5 {[%clk 0:02:42.2]} 8. Bxd5 {[%clk 0:02:50.8]}
8... Nc6 {[%clk 0:02:36.2]} 9. Nc3 {[%clk 0:02:48.7]} 9... Nb6 {[%clk
0:02:35.5]} 10. Bxc6+ {[%clk 0:02:09.8]} 10... bxc6 {[%clk 0:02:35.7]} 11. Nf3
{[%clk 0:02:10]} 11... O-O {[%clk 0:02:25.9]} 12. O-O {[%clk 0:02:09.2]} 12...
Bg4 {[%clk 0:02:24.9]} 13. Qd3 {[%clk 0:02:08.1]} 13... Bxf3 {[%clk 0:02:22.4]}
14. Qxf3 {[%clk 0:02:08.1]} 14... Qxd4 {[%clk 0:02:22.8]} 15. Bf4 {[%clk
0:01:55.1]} 15... Bxe5 {[%clk 0:02:05.7]} 16. Rfd1 {[%clk 0:01:30.4]} 16... Qc5
{[%clk 0:02:05]} 17. Ne4 {[%clk 0:01:30.4]} 17... Qb5 {[%clk 0:01:31.4]} 18. a4
{[%clk 0:01:27.4]} 18... Qxb2 {[%clk 0:01:31.2]} 19. Rab1 {[%clk 0:01:27]} 19...
Qa2 {[%clk 0:01:23.3]} 20. Bxe5 {[%clk 0:01:26.7]} 20... Qxa4 {[%clk 0:01:23.2]}
21. Nf6+ {[%clk 0:01:24.9]} 1-0

[Event "Early-Titled-Tuesday-Blitz-September-12-2023"]
[Site "Chess.com"]
[Date "2023.09.12"]
[Round "3"]
[White "Journey_to_GrandMaster_YT"]
[Black "Schattman"]
[Result "0-1"]
[WhiteElo "2614"]
[BlackElo "2475"]
[TimeControl "180+1"]
[EndTime "8:24:59 PDT"]
[Termination "Schattman won by resignation"]

1. d4 {[%clk 0:02:59.8]} 1... Nf6 {[%clk 0:02:59.3]} 2. Nf3 {[%clk 0:03:00.1]}
2... g6 {[%clk 0:02:59.4]} 3. c4 {[%clk 0:02:58.9]} 3... Bg7 {[%clk 0:02:59.2]}
4. Nc3 {[%clk 0:02:59.1]} 4... d5 {[%clk 0:02:59.3]} 5. Qb3 {[%clk 0:02:49.9]}
5... dxc4 {[%clk 0:02:50.9]} 6. Qxc4 {[%clk 0:02:50.8]} 6... Be6 {[%clk
0:02:49.4]} 7. Qb5+ {[%clk 0:02:26.3]} 7... Bd7 {[%clk 0:02:48.5]} 8. Qxb7
{[%clk 0:02:25.8]} 8... Nc6 {[%clk 0:02:48.4]} 9. Bf4 {[%clk 0:02:03.4]} 9...
Rb8 {[%clk 0:02:18.4]} 10. Qxc7 {[%clk 0:02:03]} 10... Qxc7 {[%clk 0:02:18.8]}
11. Bxc7 {[%clk 0:02:03.9]} 11... Rxb2 {[%clk 0:02:15.5]} 12. e3 {[%clk
0:01:26.7]} 12... Nb4 {[%clk 0:01:54.2]} 13. O-O-O {[%clk 0:01:17.6]} 13... Rc2+
{[%clk 0:01:51.8]} 14. Kb1 {[%clk 0:01:14.6]} 14... Rxc3 {[%clk 0:01:46.7]} 15.
Ba5 {[%clk 0:01:11.2]} 15... Rc8 {[%clk 0:01:41.9]} 16. Ba6 {[%clk 0:00:57.7]}
16... Nxa6 {[%clk 0:01:39.5]} 0-1

[Event "Early-Titled-Tuesday-Blitz-September-12-2023"]
[Site "Chess.com"]
[Date "2023.09.12"]
[Round "3"]
[White "drragnar1"]
[Black "Grandmaster1369"]
[Result "0-1"]
[WhiteElo "2383"]
[BlackElo "2568"]
[TimeControl "180+1"]
[EndTime "8:25:44 PDT"]
[Termination "Grandmaster1369 won by resignation"]

1. c4 {[%clk 0:02:59.3]} 1... c5 {[%clk 0:02:59.6]} 2. Nf3 {[%clk 0:02:58.6]}
2... g6 {[%clk 0:03:00.2]} 3. g3 {[%clk 0:02:58.8]} 3... Bg7 {[%clk 0:03:00.6]}
4. Bg2 {[%clk 0:02:59.5]} 4... Nc6 {[%clk 0:03:01.3]} 5. O-O {[%clk 0:02:59.9]}
5... e6 {[%clk 0:03:01.9]} 6. e4 {[%clk 0:02:48.3]} 6... Nge7 {[%clk 0:03:01.2]}
7. Nc3 {[%clk 0:02:46]} 7... d6 {[%clk 0:03:01.7]} 8. d3 {[%clk 0:02:45.7]} 8...
O-O {[%clk 0:03:02.1]} 9. Be3 {[%clk 0:02:40.5]} 9... Nd4 {[%clk 0:03:02.3]} 10.
Qd2 {[%clk 0:02:39.1]} 10... Rb8 {[%clk 0:03:00.7]} 11. Bh6 {[%clk 0:02:37.2]}
11... Nec6 {[%clk 0:02:56.4]} 12. Bxg7 {[%clk 0:02:36.4]} 12... Kxg7 {[%clk
0:02:57.3]} 13. Nxd4 {[%clk 0:02:35.7]} 13... Nxd4 {[%clk 0:02:56]} 14. f4
{[%clk 0:02:32]} 14... f5 {[%clk 0:02:52.2]} 15. Rae1 {[%clk 0:02:23.3]} 15...
Bd7 {[%clk 0:02:49.3]} 16. e5 {[%clk 0:02:18.7]} 16... Bc6 {[%clk 0:02:44]} 17.
exd6 {[%clk 0:02:16]} 17... Bxg2 {[%clk 0:02:41.1]} 18. Qxg2 {[%clk 0:02:09.7]}
18... Qxd6 {[%clk 0:02:41.3]} 19. Re3 {[%clk 0:02:04.9]} 19... Rf7 {[%clk
0:02:32.1]} 20. Rfe1 {[%clk 0:02:04.5]} 20... Re8 {[%clk 0:02:31.7]} 21. Re5
{[%clk 0:01:58]} 21... b6 {[%clk 0:02:29.4]} 22. a4 {[%clk 0:01:37.5]} 22... Nc6
{[%clk 0:02:25.2]} 23. R5e3 {[%clk 0:01:35.9]} 23... Rfe7 {[%clk 0:02:17.8]} 24.
Nb5 {[%clk 0:01:33.2]} 24... Qd7 {[%clk 0:02:17.9]} 25. Qe2 {[%clk 0:01:27.3]}
25... e5 {[%clk 0:02:12.7]} 26. fxe5 {[%clk 0:01:22]} 26... Rxe5 {[%clk
0:02:13.1]} 27. Qf2 {[%clk 0:01:16.9]} 27... R8e6 {[%clk 0:01:41.2]} 28. Qf4
{[%clk 0:01:13.3]} 28... Qe7 {[%clk 0:01:34.7]} 29. Rxe5 {[%clk 0:01:12]} 29...
Nxe5 {[%clk 0:01:35.6]} 30. Kg2 {[%clk 0:01:04.9]} 30... Nxd3 {[%clk 0:01:34.7]}
31. Qc7 {[%clk 0:00:56.3]} 31... Nxe1+ {[%clk 0:01:33.3]} 0-1

[Event "Early-Titled-Tuesday-Blitz-September-12-2023"]
[Site "Chess.com"]
[Date "2023.09.12"]
[Round "3"]
[White "Beca95"]
[Black "Cambek64"]
[Result "1-0"]
[WhiteElo "2957"]
[BlackElo "2522"]
[TimeControl "180+1"]
[EndTime "8:26:06 PDT"]
[Termination "Beca95 won on time"]

1. d4 {[%clk 0:03:00.9]} 1... Nf6 {[%clk 0:01:56.6]} 2. c4 {[%clk 0:02:58.8]}
2... g6 {[%clk 0:01:53.8]} 3. Nc3 {[%clk 0:02:59.3]} 3... d5 {[%clk 0:01:53.5]}
4. Nf3 {[%clk 0:02:58.7]} 4... Bg7 {[%clk 0:01:25.9]} 5. h4 {[%clk 0:02:58.7]}
5... h5 {[%clk 0:01:25]} 6. cxd5 {[%clk 0:02:56.4]} 6... Nxd5 {[%clk 0:01:19.6]}
7. e4 {[%clk 0:02:57]} 7... Nxc3 {[%clk 0:01:07]} 8. bxc3 {[%clk 0:02:57.9]}
8... O-O {[%clk 0:01:06.2]} 9. Be3 {[%clk 0:02:52.1]} 9... c5 {[%clk 0:01:05.5]}
10. Be2 {[%clk 0:02:51.7]} 10... cxd4 {[%clk 0:01:02.2]} 11. cxd4 {[%clk
0:02:52.6]} 11... Nc6 {[%clk 0:01:00.7]} 12. O-O {[%clk 0:02:52.2]} 12... Bg4
{[%clk 0:01:00.5]} 13. d5 {[%clk 0:02:52.2]} 13... Bxf3 {[%clk 0:00:47.2]} 14.
Bxf3 {[%clk 0:02:50.8]} 14... Ne5 {[%clk 0:00:34.4]} 15. Rb1 {[%clk 0:02:44.1]}
15... Nxf3+ {[%clk 0:00:30]} 16. Qxf3 {[%clk 0:02:43.8]} 16... Qd7 {[%clk
0:00:28.6]} 17. Bf4 {[%clk 0:02:33.9]} 17... Rac8 {[%clk 0:00:26.4]} 18. Qd3
{[%clk 0:02:26]} 18... e6 {[%clk 0:00:19.7]} 19. d6 {[%clk 0:02:21.2]} 19... e5
{[%clk 0:00:18.5]} 20. Bg5 {[%clk 0:02:21.1]} 20... Rc6 {[%clk 0:00:19.2]} 21.
Be7 {[%clk 0:02:17.7]} 21... Re8 {[%clk 0:00:19.3]} 22. Rfd1 {[%clk 0:02:15.4]}
22... b6 {[%clk 0:00:18]} 23. Rb5 {[%clk 0:02:12.5]} 23... Bf8 {[%clk
0:00:11.3]} 24. Bxf8 {[%clk 0:01:51]} 24... Kxf8 {[%clk 0:00:09.1]} 25. Rd5
{[%clk 0:01:51.7]} 25... Re6 {[%clk 0:00:08.2]} 26. Qd2 {[%clk 0:01:51.8]} 26...
Kg7 {[%clk 0:00:07.3]} 27. g3 {[%clk 0:01:52.2]} 1-0